bitfinex/quotes_BTCUSD_20250123
["timestamp","ask_amount","ask_price","bid_price","bid_amount"]
[1737615772035,0.49586892,102170.0,102160.0,0.00015146]
[1737615772238,0.42586892,102170.0,102160.0,0.00015146]
[1737615772622,0.44586892,102170.0,102160.0,0.00015146]
[1737615774110,0.30556892,102170.0,102160.0,0.00015146]
[1737615774696,0.55556892,102170.0,102160.0,0.00015146]
[1737615774868,0.45822163,102170.0,102160.0,0.00015146]
[1737615775696,0.42031566,102170.0,102160.0,0.00015146]
[1737615777112,0.42996637,102170.0,102160.0,0.00015146]
[1737615777592,0.57996637,102170.0,102160.0,0.00015146]
[1737615777813,0.61790538,102170.0,102160.0,0.00015146]
[1737615779154,0.70488194,102170.0,102160.0,0.00015146]
[1737615780984,0.70484194,102170.0,102160.0,0.00015146]
[1737615781212,0.44446327,102170.0,102160.0,0.00015146]
[1737615781366,0.55484194,102170.0,102160.0,0.00015146]
[1737615782373,0.35748671,102170.0,102160.0,0.00015146]
[1737615782782,0.46786538,102170.0,102160.0,0.00015146]
[1737615783482,0.35748671,102170.0,102160.0,0.00015146]
[1737615784465,0.46786538,102170.0,102160.0,0.00015146]
[1737615788001,0.37002938,102170.0,102160.0,0.00015146]
[1737615788213,0.46790538,102170.0,102160.0,0.00015146]
[1737615791754,0.46820463,102170.0,102160.0,0.00015146]
[1737615795890,0.71035192,102170.0,102160.0,0.00015146]
[1737615799416,0.91035192,102170.0,102160.0,0.00015146]
[1737615799853,0.94489001,102170.0,102160.0,0.00015146]
[1737615800703,0.94436182,102170.0,102160.0,0.00015146]
[1737615801751,1.03133838,102170.0,102160.0,0.00015146]
[1737615803418,1.05069897,102170.0,102160.0,0.00015146]
[1737615804388,1.00069897,102170.0,102160.0,0.00015146]
[1737615804604,1.05069897,102170.0,102160.0,0.00015146]
[1737615806486,0.96372241,102170.0,102160.0,0.00015146]
[1737615807524,0.96672241,102170.0,102160.0,0.00015146]
[1737615807731,1.03918079,102170.0,102160.0,4.6e-07]
[1737615809486,0.96672241,102170.0,102160.0,4.6e-07]
[1737615809708,1.03918079,102170.0,102160.0,4.6e-07]
[1737615811502,0.96372241,102170.0,102160.0,4.6e-07]
[1737615811699,0.91372241,102170.0,102160.0,4.6e-07]
[1737615812153,0.86582241,102170.0,102160.0,4.6e-07]
[1737615812510,0.61956182,102170.0,102160.0,4.6e-07]
[1737615813297,0.59956182,102170.0,102160.0,4.6e-07]
[1737615813498,0.74956182,102170.0,102160.0,4.6e-07]
[1737615813703,0.71504661,102170.0,102160.0,4.6e-07]
[1737615815220,0.80205753,102170.0,102160.0,4.6e-07]
[1737615815420,0.80353753,102170.0,102160.0,0.00014296]
[1737615818994,0.71652661,102170.0,102160.0,0.00014296]
[1737615819230,0.71652661,102170.0,102160.0,9.296e-05]
[1737615821369,0.09948204,102160.0,102150.0,0.0770426]
[1737615821570,0.20998112,102160.0,102150.0,0.0770426]
[1737615822578,0.20144536,102160.0,102150.0,0.0770426]
[1737615823711,0.09104381,102160.0,102150.0,0.0770426]
[1737615823918,0.09104381,102160.0,102150.0,0.1265426]
[1737615824144,0.14104381,102160.0,102150.0,0.1265426]
[1737615824333,0.09104381,102160.0,102150.0,0.1265426]
[1737615824656,0.49810061,102160.0,102150.0,0.1265426]
[1737615825261,0.44810061,102160.0,102150.0,0.2244376]
[1737615825650,0.19810061,102160.0,102150.0,0.2244376]
[1737615826778,0.44810061,102160.0,102150.0,0.2244376]
[1737615827112,0.47713275,102160.0,102150.0,0.2244376]
[1737615828144,0.39007595,102160.0,102150.0,0.2244376]
[1737615829098,0.36798253,102160.0,102150.0,0.32178489]
[1737615829652,0.22838408,102160.0,102150.0,0.32178489]
[1737615830095,0.22838408,102160.0,102150.0,0.22388989]
[1737615830651,0.22838408,102160.0,102150.0,0.1265426]
[1737615830854,0.20838408,102160.0,102150.0,0.1265426]
[1737615831212,0.20912655,102160.0,102150.0,0.1265426]
[1737615831331,0.20838408,102160.0,102150.0,0.1265426]
[1737615831534,0.45838408,102160.0,102150.0,0.1265426]
[1737615831739,0.50838408,102160.0,102150.0,0.1265426]
[1737615831968,0.45838408,102160.0,102150.0,0.1265426]
[1737615835680,0.42042998,102160.0,102150.0,0.1265426]
[1737615836189,0.49287743,102160.0,102150.0,0.0001426]
[1737615836595,0.82202472,102160.0,102150.0,0.0001426]
[1737615838299,0.82232397,102160.0,102150.0,0.0001426]
[1737615839714,0.83211415,102160.0,102150.0,0.0001426]
[1737615840358,0.9245616,102160.0,102150.0,0.0001426]
[1737615840535,0.85211415,102160.0,102150.0,0.0001426]
[1737615840692,0.9245616,102160.0,102150.0,0.0001426]
[1737615840878,0.85211415,102160.0,102150.0,0.0001426]
[1737615841085,0.9245616,102160.0,102150.0,6e-07]
[1737615841289,1.12030889,102160.0,102150.0,6e-07]
[1737615841491,1.0229616,102160.0,102150.0,6e-07]
[1737615841707,1.0229216,102160.0,102150.0,6e-07]
[1737615841933,1.0229216,102160.0,102120.0,0.01537224]
[1737615841934,0.05,102130.0,102110.0,0.2762839]
[1737615842137,0.61055611,102120.0,102110.0,0.2762839]
[1737615842383,1.58111364,102120.0,102110.0,0.2762839]
[1737615842640,1.2565858,102120.0,102110.0,0.1783489]
[1737615842838,0.352743,102100.0,102090.0,0.0153513]
[1737615843085,0.74767751,102100.0,102090.0,3e-07]
[1737615843249,0.320962,102080.0,102070.0,0.0001425]
[1737615843408,0.49644168,102080.0,102070.0,0.00064622]
[1737615843611,0.7486289,102080.0,102070.0,0.00064622]
[1737615843988,0.53128655,102080.0,102070.0,0.00064622]
[1737615844110,0.47598955,102080.0,102070.0,0.00064622]
[1737615844318,0.45598955,102080.0,102070.0,0.00064622]
[1737615845122,0.45598955,102080.0,102070.0,0.01596796]
[1737615845777,0.70598955,102080.0,102070.0,0.01596796]
[1737615846273,0.497962,102080.0,102070.0,0.01596796]
[1737615846460,0.45864226,102080.0,102070.0,0.00064622]
[1737615846889,0.60864226,102080.0,102070.0,0.00064622]
[1737615847090,0.497962,102080.0,102070.0,0.00064622]
[1737615847305,0.27,102080.0,102070.0,0.00064622]
[1737615847510,0.25,102080.0,102070.0,0.09861722]
[1737615847710,0.25,102080.0,102070.0,0.38922441]
[1737615847919,0.25,102080.0,102070.0,0.45894477]
[1737615848602,0.25,102090.0,102080.0,0.097962]
[1737615848833,0.25,102090.0,102080.0,0.19530929]
[1737615850567,0.367944,102100.0,102080.0,0.19530929]
[1737615850789,0.56383,102100.0,102080.0,0.58714929]
[1737615851185,0.367944,102100.0,102090.0,0.097952]
[1737615851596,0.563832,102100.0,102080.0,0.39136089]
[1737615851766,0.367944,102100.0,102090.0,0.097952]
[1737615852521,0.25,102100.0,102090.0,0.19529929]
[1737615852671,1.082387,102110.0,102090.0,0.58710129]
[1737615853095,1.082387,102110.0,102090.0,0.39119629]
[1737615853503,0.886507,102110.0,102100.0,0.097943]
[1737615853693,0.886507,102110.0,102090.0,0.58708029]
[1737615854617,1.082385,102110.0,102090.0,0.58708029]
[1737615854823,1.082385,102110.0,102090.0,0.39118329]
[1737615855016,0.14868547,102100.0,102090.0,0.39118329]
[1737615855259,1.082387,102110.0,102090.0,0.39118329]
[1737615855659,0.25,102100.0,102090.0,0.39118329]
[1737615856637,1.16890084,102110.0,102090.0,0.39118329]
[1737615857455,0.05,102100.0,102090.0,0.39118329]
[1737615857619,0.347943,102100.0,102090.0,0.39118329]
[1737615858219,0.25,102100.0,102090.0,0.39118329]
[1737615858611,1.16890084,102110.0,102090.0,0.39118329]
[1737615859182,1.16890084,102110.0,102090.0,0.58708729]
[1737615859563,0.02,102090.0,102080.0,0.0001426]
[1737615859766,0.147952,102090.0,102080.0,0.0001426]
[1737615859980,0.25863226,102090.0,102080.0,0.0001426]
[1737615860421,0.45597955,102090.0,102080.0,0.0001426]
[1737615860658,0.70597955,102090.0,102080.0,0.0001426]
[1737615860869,0.9140071,102090.0,102080.0,0.0101426]
[1737615861278,0.70597955,102090.0,102080.0,0.0101426]
[1737615863672,0.81665981,102090.0,102080.0,0.0101426]
[1737615864099,0.83665981,102090.0,102080.0,0.0101426]
[1737615864302,1.15935981,102090.0,102080.0,0.0101426]
[1737615864880,1.16901026,102090.0,102080.0,0.0101426]
[1737615866378,1.03833,102090.0,102080.0,0.0101426]
[1737615868227,1.14901026,102090.0,102080.0,0.0101426]
[1737615868427,1.03833,102090.0,102080.0,0.0101426]
[1737615868625,0.93133226,102090.0,102080.0,0.0101426]
[1737615868831,0.820652,102090.0,102080.0,0.0101426]
[1737615869050,0.670652,102090.0,102080.0,0.0101426]
[1737615869252,0.5927,102090.0,102080.0,0.1081046]
[1737615869457,0.690652,102090.0,102080.0,0.0101426]
[1737615870030,0.670652,102090.0,102080.0,0.0101426]
[1737615870238,0.45863226,102090.0,102080.0,0.0101426]
[1737615870715,0.347952,102090.0,102080.0,0.0101426]
[1737615871004,0.45863226,102090.0,102080.0,0.0101426]
[1737615873026,0.55597955,102090.0,102080.0,0.0101426]
[1737615874594,0.64222231,102090.0,102080.0,0.0101426]
[1737615875144,0.43419476,102090.0,102080.0,0.0101426]
[1737615876149,0.45419476,102090.0,102080.0,0.0101426]
[1737615876344,0.43449422,102090.0,102080.0,0.0101426]
[1737615876707,0.34825146,102090.0,102080.0,0.0101426]
[1737615877309,0.36825146,102090.0,102080.0,0.0101426]
[1737615877972,0.34825146,102090.0,102080.0,0.0101426]
[1737615878183,0.36825146,102090.0,102080.0,0.0101426]
[1737615878315,0.36825146,102090.0,102080.0,0.1081046]
[1737615879811,0.25029946,102090.0,102080.0,0.20545189]
[1737615880016,0.25029946,102090.0,102080.0,0.28635189]
[1737615880696,0.00029946,102090.0,102080.0,0.28635189]
[1737615881076,0.05029946,102090.0,102080.0,0.28635189]
[1737615881275,0.27967419,102090.0,102080.0,0.1890046]
[1737615881445,0.27893172,102090.0,102080.0,0.1890046]
[1737615881647,0.50477068,102090.0,102080.0,0.1890046]
[1737615882819,0.50477068,102090.0,102080.0,0.1081046]
[1737615883835,0.50477068,102090.0,102080.0,0.0101426]
[1737615884284,0.50477068,102090.0,102080.0,0.1081046]
[1737615884924,0.40681868,102090.0,102080.0,0.1081046]
[1737615885133,0.35681868,102090.0,102080.0,0.1081046]
[1737615885337,0.33681868,102090.0,102080.0,0.1081046]
[1737615885521,0.08681868,102090.0,102080.0,0.1081046]
[1737615885744,0.08681868,102090.0,102080.0,0.1890046]
[1737615886591,0.08681868,102090.0,102080.0,0.28635189]
[1737615887009,0.08681868,102090.0,102080.0,0.33415189]
[1737615889336,0.08681868,102090.0,102080.0,0.72851241]
[1737615889558,0.08681868,102090.0,102080.0,1.13566241]
[1737615889856,0.00029946,102090.0,102080.0,0.77212183]
[1737615890327,0.00029946,102090.0,102080.0,0.64829183]
[1737615890501,0.00029946,102090.0,102080.0,0.77676983]
[1737615891588,0.00029946,102090.0,102080.0,0.64829183]
[1737615891785,0.00029946,102090.0,102080.0,0.77586383]
[1737615892441,0.00029946,102090.0,102080.0,0.64829183]
[1737615892648,0.00029946,102090.0,102080.0,0.61783215]
[1737615894361,0.00029946,102090.0,102080.0,0.63698614]
[1737615902464,0.00025946,102090.0,102080.0,0.63698614]
[1737615910760,0.00025946,102090.0,102080.0,0.83193414]
[1737615911544,0.00025946,102090.0,102080.0,0.80499114]
[1737615911814,0.00025946,102090.0,102080.0,0.63698614]
[1737615914088,0.00025946,102090.0,102080.0,0.47850588]
[1737615914303,0.00025946,102090.0,102080.0,0.58918614]
[1737615914890,0.00025946,102090.0,102080.0,0.63878614]
[1737615916491,0.24733439,102110.0,102100.0,0.097943]
[1737615916696,0.24733439,102110.0,102090.0,0.391781]
[1737615916697,0.11350192,102100.0,102080.0,0.59727189]
[1737615916872,0.14865892,102090.0,102080.0,0.40135889]
[1737615917101,0.24661092,102090.0,102080.0,0.40135889]
[1737615917667,0.14865892,102090.0,102080.0,0.40135889]
[1737615917863,0.671645,102100.0,102080.0,0.40135889]
[1737615918121,0.06555892,102090.0,102080.0,0.40135889]
[1737615918880,0.01555892,102090.0,102080.0,0.40135889]
[1737615919775,0.06555892,102090.0,102080.0,0.40135889]
[1737615923311,0.06555892,102090.0,102080.0,0.39135889]
[1737615923936,0.16351092,102090.0,102080.0,0.19544589]
[1737615924442,0.06555892,102090.0,102080.0,0.19544589]
[1737615925344,0.01555892,102090.0,102080.0,0.19544589]
[1737615925574,0.06555892,102090.0,102080.0,0.19544589]
[1737615926090,0.725746,102100.0,102090.0,0.097952]
[1737615926299,0.06555892,102090.0,102080.0,0.39135289]
[1737615927171,0.69130492,102100.0,102080.0,0.29339889]
[1737615927358,0.675746,102100.0,102090.0,0.097952]
[1737615927553,0.425746,102100.0,102090.0,0.097952]
[1737615927758,0.44130492,102100.0,102090.0,0.097952]
[1737615928138,0.49130492,102100.0,102090.0,0.097952]
[1737615928338,0.425746,102100.0,102090.0,0.097952]
[1737615928539,0.44130492,102100.0,102090.0,0.097952]
[1737615928744,0.29540892,102100.0,102090.0,0.097952]
[1737615928947,0.01555892,102100.0,102090.0,0.19529929]
[1737615929146,0.72579418,102110.0,102100.0,0.097943]
[1737615929453,0.52991818,102110.0,102100.0,0.097943]
[1737615929653,0.26435926,102110.0,102100.0,0.097943]
[1737615930062,0.18197718,102110.0,102100.0,0.097943]
[1737615930264,0.15237718,102110.0,102100.0,0.19529029]
[1737615930470,0.13681826,102110.0,102100.0,0.19529029]
[1737615930884,0.23475126,102110.0,102100.0,0.09734729]
[1737615931268,0.11350292,102100.0,102080.0,0.2480956]
[1737615931476,0.29104592,102100.0,102080.0,0.09748989]
[1737615931806,0.43322202,102090.0,102080.0,0.0001426]
[1737615931941,0.43247955,102090.0,102080.0,0.0001426]
[1737615932575,0.58247955,102090.0,102080.0,0.0001426]
[1737615934624,0.83247955,102090.0,102080.0,0.0001426]
[1737615935055,0.94315981,102090.0,102080.0,0.0001426]
[1737615935591,1.01315981,102090.0,102080.0,0.0001426]
[1737615935733,1.1105071,102090.0,102080.0,6e-07]
[1737615935956,0.95288275,102090.0,102080.0,6e-07]
[1737615939125,0.97588275,102090.0,102080.0,6e-07]
[1737615939256,0.38344226,102080.0,102070.0,8.2e-07]
[1737615939444,0.48078955,102080.0,102070.0,8.2e-07]
[1737615939661,0.59146981,102080.0,102070.0,8.2e-07]
[1737615940703,0.6888171,102080.0,102070.0,8.2e-07]
[1737615940908,0.59146981,102080.0,102070.0,8.2e-07]
[1737615941122,0.272771,102070.0,102060.0,3.2e-07]
[1737615941331,0.1948,102060.0,102050.0,5.6e-07]
[1737615941499,0.60155102,102060.0,102050.0,5.085e-05]
[1737615941702,0.71148881,102060.0,102050.0,5.085e-05]
[1737615941903,0.71148881,102060.0,102050.0,8.5e-07]
[1737615942326,0.76148881,102060.0,102050.0,8.5e-07]
[1737615942728,0.71148881,102060.0,102050.0,8.5e-07]
[1737615942928,0.76148881,102060.0,102050.0,8.5e-07]
[1737615943129,0.71148881,102060.0,102050.0,8.5e-07]
[1737615943923,0.74148881,102060.0,102050.0,8.5e-07]
[1737615944126,0.76148881,102060.0,102050.0,8.5e-07]
[1737615944526,0.94148881,102060.0,102050.0,8.5e-07]
[1737615944889,0.69414152,102060.0,102050.0,8.5e-07]
[1737615945736,1.1088361,102060.0,102050.0,8.5e-07]
[1737615945936,1.14838434,102060.0,102050.0,8.5e-07]
[1737615946694,1.18322921,102060.0,102050.0,8.5e-07]
[1737615947579,0.96186869,102060.0,102050.0,2.5e-07]
[1737615948762,1.19316708,102060.0,102050.0,2.5e-07]
[1737615949603,1.10661884,102060.0,102050.0,2.5e-07]
[1737615950215,1.16532884,102060.0,102050.0,2.5e-07]
[1737615950418,1.00927155,102060.0,102050.0,2.5e-07]
[1737615951326,1.01318955,102060.0,102050.0,2.5e-07]
[1737615951897,1.02142668,102060.0,102050.0,2.5e-07]
[1737615953461,1.04145672,102060.0,102050.0,2.5e-07]
[1737615953706,0.99145672,102060.0,102050.0,2.5e-07]
[1737615953822,1.13880401,102060.0,102050.0,2.5e-07]
[1737615954785,0.99145672,102060.0,102050.0,2.5e-07]
[1737615954994,1.04145672,102060.0,102050.0,2.5e-07]
[1737615955424,0.82662668,102060.0,102050.0,2.5e-07]
[1737615956584,0.87662668,102060.0,102050.0,2.5e-07]
[1737615957522,0.9827349,102060.0,102050.0,2.5e-07]
[1737615957828,1.08008219,102060.0,102050.0,2.5e-07]
[1737615958415,0.9827349,102060.0,102050.0,2.5e-07]
[1737615959722,0.98303415,102060.0,102050.0,2.5e-07]
[1737615959919,1.11373415,102060.0,102050.0,2.5e-07]
[1737615960259,1.09373415,102060.0,102050.0,2.5e-07]
[1737615960457,1.11373415,102060.0,102050.0,2.5e-07]
[1737615960758,1.21108144,102060.0,102050.0,2.5e-07]
[1737615961062,1.09373415,102060.0,102050.0,2.5e-07]
[1737615961270,1.04573415,102060.0,102050.0,2.5e-07]
[1737615964122,0.95962593,102060.0,102050.0,2.5e-07]
[1737615964348,0.95958593,102060.0,102050.0,2.5e-07]
[1737615964668,0.82688593,102060.0,102050.0,2.5e-07]
[1737615965317,0.87688593,102060.0,102050.0,2.5e-07]
[1737615969320,0.89688593,102060.0,102050.0,2.5e-07]
[1737615969996,0.99423322,102060.0,102050.0,2.5e-07]
[1737615970217,0.89688593,102060.0,102050.0,2.5e-07]
[1737615971418,0.84688593,102060.0,102050.0,2.5e-07]
[1737615971624,0.89688593,102060.0,102050.0,2.5e-07]
[1737615973571,0.84688593,102060.0,102050.0,2.5e-07]
[1737615973772,0.89688593,102060.0,102050.0,2.5e-07]
[1737615974880,0.84688593,102060.0,102050.0,2.5e-07]
[1737615975036,0.89688593,102060.0,102050.0,2.5e-07]
[1737615975596,0.82688593,102060.0,102050.0,2.5e-07]
[1737615999892,0.91988593,102060.0,102050.0,2.5e-07]
[1737616000068,0.97688593,102060.0,102050.0,2.5e-07]
[1737616005642,0.98516593,102060.0,102050.0,2.5e-07]
[1737616007238,0.93516593,102060.0,102050.0,2.5e-07]
[1737616017396,0.30167126,102050.0,102040.0,0.0011025]
[1737616017605,0.09801,102030.0,102020.0,0.08103504]
[1737616017961,0.32011299,102030.0,102020.0,0.08118606]
[1737616018215,0.56671781,102030.0,102020.0,0.00015102]
[1737616018413,0.61671781,102030.0,102020.0,0.00015102]
[1737616019647,0.86671781,102030.0,102020.0,0.00015102]
[1737616019789,0.88943147,102030.0,102020.0,0.00015102]
[1737616020019,0.05,102000.0,101990.0,0.01396265]
[1737616020242,0.148039,102000.0,101990.0,0.111458]
[1737616020438,0.148039,102000.0,101990.0,0.243258]
[1737616022302,0.30966192,102010.0,102000.0,0.1318]
[1737616022541,0.294103,102010.0,102000.0,0.229839]
[1737616022689,0.348025,102020.0,102010.0,0.229829]
[1737616022860,0.348019,102020.0,102010.0,0.32717629]
[1737616023060,0.25,102020.0,102010.0,0.32717629]
[1737616023682,0.72028518,102030.0,102020.0,0.0821]
[1737616023883,0.67028518,102030.0,102020.0,0.0821]
[1737616024121,0.72028518,102030.0,102020.0,0.0821]
[1737616025431,0.83096544,102030.0,102020.0,0.0821]
[1737616025634,0.81536652,102030.0,102020.0,0.0821]
[1737616026905,0.76536652,102030.0,102020.0,0.0821]
[1737616028653,0.86301327,102030.0,102020.0,0.0821]
[1737616031339,0.76566598,102030.0,102020.0,0.0821]
[1737616032289,0.86301327,102030.0,102020.0,0.0821]
[1737616034016,0.11357792,102020.0,102010.0,0.1278]
[1737616034170,0.22500065,102020.0,102010.0,0.0781]
[1737616034372,0.35869926,102020.0,102010.0,0.0781]
[1737616034570,0.41497876,102020.0,102010.0,0.0781]
[1737616034765,0.66497876,102020.0,102010.0,0.0781]
[1737616034970,0.60869926,102020.0,102010.0,0.0781]
[1737616040281,0.60869926,102020.0,102010.0,0.0782424]
[1737616040489,0.69550629,102020.0,102010.0,0.0782424]
[1737616041882,0.70545569,102020.0,102010.0,0.0782424]
[1737616043098,0.72101461,102020.0,102010.0,0.0782424]
[1737616043309,0.70545569,102020.0,102010.0,0.0782424]
[1737616045900,0.45038495,102020.0,102010.0,0.0782424]
[1737616046122,0.50038495,102020.0,102010.0,0.0782424]
[1737616046326,0.61106521,102020.0,102010.0,0.0782424]
[1737616047039,0.56106521,102020.0,102010.0,0.0782424]
[1737616047784,0.61106521,102020.0,102010.0,0.0782424]
[1737616048364,0.56106521,102020.0,102010.0,0.0782424]
[1737616048958,0.61106521,102020.0,102010.0,0.0782424]
[1737616049330,0.45038495,102020.0,102010.0,0.0782424]
[1737616049498,0.58998564,102020.0,102010.0,0.0782424]
[1737616051522,0.57442672,102020.0,102010.0,0.0782424]
[1737616051929,0.57442672,102020.0,102010.0,0.0001424]
[1737616052130,0.54550629,102020.0,102010.0,0.0001424]
[1737616053770,0.56106521,102020.0,102010.0,0.0001424]
[1737616054347,0.45038495,102020.0,102010.0,0.0001424]
[1737616054550,0.45038495,102020.0,102010.0,0.0762424]
[1737616054776,0.56106521,102020.0,102010.0,0.0762424]
[1737616056392,0.45038495,102020.0,102010.0,0.0762424]
[1737616056887,0.56106521,102020.0,102010.0,0.0762424]
[1737616058573,0.50038495,102020.0,102010.0,0.0762424]
[1737616058781,0.45038495,102020.0,102010.0,0.0762424]
[1737616059271,0.50038495,102020.0,102010.0,0.0762424]
[1737616059636,0.52931682,102020.0,102010.0,0.0762424]
[1737616061377,0.50038495,102020.0,102010.0,0.0762424]
[1737616061524,0.45038495,102020.0,102010.0,0.0762424]
[1737616061931,0.50038495,102020.0,102010.0,0.0762424]
[1737616062176,0.45038495,102020.0,102010.0,0.0762424]
[1737616062902,0.50038495,102020.0,102010.0,0.0762424]
[1737616063456,0.61106521,102020.0,102010.0,0.0001424]
[1737616063678,0.56106521,102020.0,102010.0,0.0001424]
[1737616065383,0.62420629,102020.0,102010.0,0.0001424]
[1737616065986,0.53739926,102020.0,102010.0,0.0001424]
[1737616067082,0.45869926,102020.0,102010.0,0.0001424]
[1737616071595,0.47425818,102020.0,102010.0,0.0001424]
[1737616071924,0.52425818,102020.0,102010.0,0.0001424]
[1737616072147,0.41357792,102020.0,102010.0,0.0001424]
[1737616072695,0.52425818,102020.0,102010.0,0.0001424]
[1737616073442,0.41357792,102020.0,102010.0,0.0001424]
[1737616073651,0.36357792,102020.0,102010.0,0.0001424]
[1737616074076,0.41357792,102020.0,102010.0,0.0001424]
[1737616074403,0.52425818,102020.0,102010.0,0.0001424]
[1737616075099,0.41357792,102020.0,102010.0,0.0001424]
[1737616075315,0.41357792,102020.0,102010.0,0.0815424]
[1737616076121,0.52425818,102020.0,102010.0,0.0815424]
[1737616076368,0.41357792,102020.0,102010.0,0.0815424]
[1737616076825,0.52425818,102020.0,102010.0,0.0815424]
[1737616077032,0.47425818,102020.0,102010.0,0.0815424]
[1737616079343,0.52425818,102020.0,102010.0,0.0815424]
[1737616080021,0.47425818,102020.0,102010.0,0.0815424]
[1737616080205,0.52425818,102020.0,102010.0,0.0815424]
[1737616080382,0.47425818,102020.0,102010.0,0.0815424]
[1737616081598,0.36357792,102020.0,102010.0,0.0815424]
[1737616081973,0.47425818,102020.0,102010.0,0.0815424]
[1737616083718,0.33622162,102020.0,102010.0,0.0815424]
[1737616083951,0.43424062,102020.0,102010.0,0.0815424]
[1737616084155,0.36159692,102020.0,102010.0,0.0815424]
[1737616084290,0.43424062,102020.0,102010.0,0.0815424]
[1737616087118,0.43420062,102020.0,102010.0,0.0815424]
[1737616088095,0.52106496,102020.0,102010.0,0.0815424]
[1737616088571,0.33484334,102020.0,102010.0,0.1795714]
[1737616088783,0.33484334,102020.0,102010.0,0.27691869]
[1737616088996,0.48286234,102020.0,102010.0,0.27691869]
[1737616089199,0.55550604,102020.0,102010.0,0.17888969]
[1737616089413,0.64370866,102020.0,102010.0,0.0001424]
[1737616089814,0.60912511,102020.0,102010.0,0.0001424]
[1737616091298,0.395998,102020.0,102010.0,0.0981714]
[1737616091499,0.395998,102020.0,102010.0,0.1806714]
[1737616091707,0.395998,102020.0,102010.0,0.1806274]
[1737616091922,0.41155692,102020.0,102010.0,0.0825984]
[1737616092541,0.395998,102020.0,102010.0,0.0825984]
[1737616092735,0.41155692,102020.0,102010.0,0.0825984]
[1737616092941,0.52226077,102020.0,102010.0,0.0825984]
[1737616093719,0.41155692,102020.0,102010.0,0.0825984]
[1737616094117,0.345998,102020.0,102010.0,0.1806274]
[1737616094321,0.395998,102020.0,102010.0,0.1806274]
[1737616094721,0.345998,102020.0,102010.0,0.1806274]
[1737616094925,0.098019,102020.0,102010.0,0.1806274]
[1737616095154,0.11357792,102020.0,102010.0,0.1806274]
[1737616095359,0.75743257,102030.0,102010.0,0.67008669]
[1737616095664,0.84275872,102030.0,102010.0,0.67106689]
[1737616095881,0.84275972,102030.0,102010.0,0.67106689]
[1737616096085,0.84275972,102030.0,102010.0,0.66756689]
[1737616096795,0.01809077,102020.0,102010.0,0.47150889]
[1737616097001,0.01809077,102020.0,102010.0,0.47052869]
[1737616097218,0.10495511,102020.0,102010.0,0.47052869]
[1737616097583,0.08686434,102020.0,102010.0,0.47052869]
[1737616098254,0.08686434,102020.0,102010.0,0.62052869]
[1737616098480,0.08686434,102020.0,102010.0,0.61970376]
[1737616098717,0.08686434,102020.0,102010.0,0.69444484]
[1737616099151,0.08686434,102020.0,102010.0,0.69458724]
[1737616101278,0.0871638,102030.0,102020.0,0.248019]
[1737616101475,0.0871638,102030.0,102020.0,0.42076629]
[1737616102544,0.19786765,102030.0,102020.0,0.42076629]
[1737616102699,0.0871638,102030.0,102020.0,0.42076629]
[1737616105107,0.00029946,102030.0,102020.0,0.42076629]
[1737616111179,0.00029946,102030.0,102020.0,0.43073537]
[1737616115651,0.098019,102020.0,102010.0,0.0001424]
[1737616115859,0.45370563,102020.0,102010.0,0.0001424]
[1737616116030,0.36472858,102020.0,102010.0,0.0001424]
[1737616116249,0.43733337,102020.0,102010.0,0.0001424]
[1737616116457,0.36472858,102020.0,102010.0,0.0001424]
[1737616116617,0.61472858,102020.0,102010.0,0.0001424]
[1737616116820,0.098039,102000.0,101990.0,0.11229931]
[1737616116979,0.098039,102000.0,101990.0,0.2096466]
[1737616117189,0.098039,102000.0,101990.0,0.4057376]
[1737616117403,0.17064379,102000.0,101990.0,0.4057376]
[1737616118036,0.098039,102000.0,101990.0,0.4057376]
[1737616118237,0.17064379,102000.0,101990.0,0.4057376]
[1737616119841,0.098039,102000.0,101990.0,0.4057376]
[1737616121300,0.65615659,102010.0,101990.0,0.3076916]
[1737616121552,0.5454426,102010.0,101990.0,0.5867746]
[1737616121745,0.2954426,102010.0,101990.0,0.6848156]
[1737616121970,0.2954426,102010.0,102000.0,0.098039]
[1737616122200,0.2954426,102010.0,101990.0,0.6848116]
[1737616122455,0.31100152,102010.0,101990.0,0.5867676]
[1737616122657,0.31100152,102010.0,101990.0,0.6848086]
[1737616122970,0.50706152,102010.0,101990.0,0.6848086]
[1737616123171,0.31099152,102010.0,101990.0,0.5867676]
[1737616123422,0.0993726,102010.0,101990.0,0.7828516]
[1737616123598,0.0013376,102010.0,102000.0,0.19538629]
[1737616125905,0.0013376,102010.0,102000.0,0.34636648]
[1737616126030,0.0013376,102010.0,102000.0,0.34538629]
[1737616126438,0.0013376,102010.0,102000.0,0.42838629]
[1737616126843,0.0013376,102010.0,102000.0,0.45582737]
[1737616128378,0.0013376,102010.0,102000.0,0.56654136]
[1737616128780,0.0013376,102010.0,102000.0,0.45582737]
[1737616130496,0.0009785,102010.0,102000.0,0.45582737]
[1737616132433,0.0009785,102010.0,102000.0,0.45596977]
[1737616143951,0.00127754,102010.0,102000.0,0.45596977]
[1737616147757,0.00123754,102010.0,102000.0,0.45596977]
[1737616149741,0.00129754,102010.0,102000.0,0.45596977]
[1737616150968,0.07391662,102010.0,102000.0,0.34552869]
[1737616151306,0.24884562,102010.0,102000.0,0.34552869]
[1737616151946,0.15081662,102010.0,102000.0,0.34552869]
[1737616152885,0.24884562,102010.0,102000.0,0.19552869]
[1737616153576,0.15081662,102010.0,102000.0,0.19552869]
[1737616153768,0.18889747,102010.0,102000.0,0.19552869]
[1737616154765,0.28692647,102010.0,102000.0,0.19552869]
[1737616155559,0.18889747,102010.0,102000.0,0.19552869]
[1737616156796,0.18889747,102010.0,102000.0,0.19650898]
[1737616156999,0.18889747,102010.0,102000.0,0.19552869]
[1737616158209,0.07819754,102010.0,102000.0,0.19552869]
[1737616160409,0.00129754,102010.0,102000.0,0.19650894]
[1737616160611,0.00129754,102010.0,102000.0,0.34650894]
[1737616160812,0.00129754,102010.0,102000.0,0.34552869]
[1737616172165,0.00129754,102010.0,102000.0,0.37296977]
[1737616172370,0.00129754,102010.0,102000.0,0.4836697]
[1737616172564,0.00129754,102010.0,102000.0,0.45286977]
[1737616173184,0.00129754,102010.0,102000.0,0.4524573]
[1737616175857,0.00129754,102010.0,102000.0,0.52507097]
[1737616178092,0.00129754,102010.0,102000.0,0.59768464]
[1737616178325,0.00129754,102010.0,102000.0,0.82829864]
[1737616178559,0.00129754,102010.0,102000.0,0.85885752]
[1737616188557,0.00029946,102030.0,102020.0,0.32507375]
[1737616188714,0.00029946,102030.0,102020.0,0.51803471]
[1737616189028,0.00029946,102030.0,102020.0,0.44542104]
[1737616189432,0.00010049,102030.0,102020.0,0.44542104]
[1737616193743,0.00010049,102030.0,102020.0,0.42654174]
[1737616194154,0.00010049,102030.0,102020.0,0.58225541]
[1737616194549,0.00010049,102030.0,102020.0,0.98899531]
[1737616196666,0.00010049,102030.0,102020.0,0.99868667]
[1737616196843,0.00010049,102030.0,102020.0,0.61197467]
[1737616197246,0.00010049,102030.0,102020.0,0.73076167]
[1737616197714,0.00010049,102030.0,102020.0,0.71673567]
[1737616200532,0.00010049,102030.0,102020.0,0.61197467]